fUSD/lending_fUSD_20250423
["ID","MTS","AMOUNT","RATE_DAILY","PERIOD"]
[358692367,1745379040478,-1569078.17477737,0.0002,2]
[358692368,1745379040587,-609.5,0.0002,2]
[358692369,1745379040643,-2656.6074858,0.0002,2]
[358692370,1745379040654,-1984.94569887,0.0002,2]
[358692371,1745379040700,-14675.61031047,0.0002,2]
[358692372,1745379040756,-2251.95907628,0.0002,2]
[358692373,1745379040874,-47456.8895051,0.0002,2]
[358692374,1745379040925,-18521.71130461,0.0002,2]
[358692382,1745379043281,-26769.08249561,0.0002,2]
[358692383,1745379043293,-30236.77885791,0.0002,2]
[358692384,1745379043305,-383.30164025,0.0002,2]
[358692385,1745379043317,-649.83334176,0.0002,2]
[358692386,1745379043329,-2394.13040467,0.0002,2]
[358692387,1745379043347,-4327.4,0.0002,2]
[358692388,1745379043366,-20893.71287994,0.0002,2]
[358692389,1745379043401,-9311.89994823,0.0002,2]
[358692390,1745379043413,-324469.96620025,0.0002,2]
[358692391,1745379043424,-6062.06418301,0.0002,2]
[358692392,1745379043437,-1781.2649874,0.0002,2]
[358692393,1745379043511,-104859.90580269,0.0002,2]
[358692394,1745379043524,-6177.18706618,0.0002,2]
[358692395,1745379043536,-2239.10260521,0.0002,2]
[358692396,1745379043569,-3899.6,0.0002,2]
[358692399,1745379046258,-554.6,0.0002,2]
[358692400,1745379046474,-2155255.52324052,0.0002,2]
[358692404,1745379053324,1000.0,0.00046649,30]
[358692405,1745379067597,1000.0,0.00046649,30]
[358692406,1745379077406,1000.0,0.00046649,30]
[358692407,1745379087396,1000.0,0.00046649,30]
[358692408,1745379098010,1000.0,0.00046649,30]
[358692409,1745379104311,1000.0,0.00046649,30]
[358692410,1745379115027,808.7642374,0.00046649,30]
[358692421,1745379227327,1000.0,0.00046649,30]
[358692426,1745379472097,1000.0,0.00046693,120]
[358692427,1745379473113,1000.0,0.00046693,120]
[358692428,1745379474358,1000.0,0.00046693,120]
[358692429,1745379475593,1000.0,0.00046693,120]
[358692430,1745379476728,1000.0,0.00046693,120]
[358692431,1745379477757,1000.0,0.00046693,120]
[358692432,1745379478855,1000.0,0.00046693,120]
[358692434,1745379479902,1000.0,0.00046693,120]
[358692435,1745379481069,1000.0,0.00046693,120]
[358692436,1745379482310,1000.0,0.00046693,120]
[358692437,1745379483471,1000.0,0.00046693,120]
[358692438,1745379484577,1000.0,0.00046693,120]
[358692439,1745379485666,1000.0,0.00046693,120]
[358692440,1745379486791,1000.0,0.00046693,120]
[358692441,1745379488028,1000.0,0.00046693,120]
[358692442,1745379489175,1000.0,0.00046693,120]
[358692443,1745379490622,1000.0,0.00046693,120]
[358692444,1745379502873,388.5549232,0.00046693,120]
[358692445,1745379504739,506.2973,0.00046693,120]
[358692450,1745379574258,4989.74,0.00046585,30]
[358692452,1745379654162,855.68,0.00036164,60]
[358692454,1745379685979,670.83140239,0.00046585,120]
[358692455,1745379687021,670.83140239,0.00046585,120]
[358692456,1745379688220,670.83140239,0.00046585,120]
[358692457,1745379689481,670.83140239,0.00046585,120]
[358692458,1745379690414,670.83140239,0.00046585,120]
[358692459,1745379691462,670.83140239,0.00046585,120]
[358692460,1745379692484,670.83140239,0.00046585,120]
[358692461,1745379693565,670.83140239,0.00046585,120]
[358692462,1745379694566,670.83140239,0.00046585,120]
[358692463,1745379695710,670.83140239,0.00046585,120]
[358692468,1745379782125,498.948,0.00046585,30]
[358692470,1745379927189,500.0,0.00046585,120]
[358692471,1745379927426,500.0,0.00046585,120]
[358692472,1745379927700,500.0,0.00046585,120]
[358692473,1745379927943,500.0,0.00046585,120]
[358692474,1745379966145,5000.0,0.00046585,36]
[358692475,1745379968048,158.728926,0.00046585,120]
[358692478,1745380087287,405.87,0.00019786,3]
[358692482,1745380125732,499.155345,0.00046585,120]
[358692500,1745380231512,-1343.58015556,0.00019729,2]
[358692501,1745380231537,-948.79984444,0.00019729,2]
[358692502,1745380231547,-250.0,0.00019768,2]
[358692503,1745380231557,-20.37440038,0.00019886,2]
[358692504,1745380231569,-724.34345755,0.00019886,2]
[358692505,1745380231582,-1230.90994218,0.00019886,2]
[358692506,1745380231593,-181.14360678,0.000199,2]
[358692507,1745380231603,-150.0,0.00019945,2]
[358692508,1745380231614,-200.0,0.00019948,2]
[358692509,1745380231624,-710.63,0.00019948,2]
[358692510,1745380231634,-500.0,0.00019973,2]
[358692511,1745380231643,-380.63315176,0.00019973,2]
[358692512,1745380231653,-900.0,0.00019984,2]
[358692513,1745380231663,-300.0,0.00019984,2]
[358692514,1745380231673,-850.0,0.00019985,2]
[358692515,1745380231683,-300.0,0.00019985,2]
[358692516,1745380231693,-6953.9235208,0.00019986,2]
[358692517,1745380231703,-5060.8035113,0.00019986,2]
[358692518,1745380231713,-3758.9691726,0.00019986,2]
[358692519,1745380231723,-133739.37564317,0.00019986,2]
[358692520,1745380231743,-2168.84897319,0.00019986,2]
[358692521,1745380231775,-3002.0,0.00019986,2]
[358692522,1745380231787,-4357.36396097,0.00019986,2]
[358692523,1745380231799,-13753.96480726,0.00019986,2]
[358692524,1745380231813,-1016.99347449,0.00019986,2]
[358692525,1745380231827,-417.12196834,0.00019986,2]
[358692526,1745380231847,-854.0,0.00019986,2]
[358692739,1745380237627,-414.80661677,0.00019886,2]
[358692740,1745380237637,-1902.26828633,0.00019986,2]
[358692746,1745380239820,-770.88873662,0.00019986,2]
[358692747,1745380239833,-350.48670006,0.00019986,2]
[358692748,1745380239926,-147232.11843997,0.00019986,2]
[358692749,1745380239936,-188.82575839,0.00019986,2]
[358692750,1745380239946,-33018.10419414,0.00019986,2]
[358692751,1745380239956,-189.4847917,0.00019986,2]
[358692752,1745380239966,-151.0,0.00019999,2]
[358692753,1745380239975,-699.0,0.0002,2]
[358692754,1745380239985,-1074101.57236677,0.0002,2]
[358692755,1745380239994,-151.0,0.0002,2]
[358692756,1745380240004,-244.18517739,0.0002,2]
[358692757,1745380240013,-200.0,0.00020029,2]
[358692758,1745380240023,-1000.0,0.00020105,2]
[358692759,1745380240032,-5007.06,0.00020337,2]
[358692760,1745380240041,-914.3,0.00020398,2]
[358692761,1745380240051,-250.0,0.00020398,2]
[358692762,1745380240060,-771.6,0.00020541,2]
[358692763,1745380240070,-220.68,0.00020656,2]
[358692764,1745380240079,-250.0,0.00021,2]
[358692765,1745380240088,-185.0,0.00021,2]
[358692766,1745380240097,-247.65532579,0.00021,3]
[358692767,1745380240107,-154.72,0.00021515,2]
[358692768,1745380240117,-23900.0,0.00021564,2]
[358692769,1745380240127,-2631.8,0.00021602,2]
[358692770,1745380240136,-500.0,0.0002165,7]
[358692771,1745380240146,-250.0,0.00021665,2]
[358692772,1745380240155,-15369.86,0.00021676,2]
[358692773,1745380240165,-250.0,0.00021702,2]
[358692774,1745380240174,-250.0,0.00021702,2]
[358692775,1745380240184,-420.0,0.00021761,2]
[358692776,1745380240193,-420.0,0.00021762,2]
[358692777,1745380240203,-709.42,0.00021802,2]
[358692778,1745380240212,-220.68,0.00021803,2]
[358692779,1745380240222,-150.0,0.00021813,2]
[358692780,1745380240231,-150.0,0.00021838,2]
[358692781,1745380240241,-1260.0,0.00021865,2]
[358692782,1745380240250,-181.21,0.00021918,2]
[358692783,1745380240259,-2292.38,0.00021993,2]
[358692784,1745380240269,-151.75,0.00022078,2]
[358692786,1745380240279,-247.65532571,0.00022245,3]
[358692787,1745380240289,-175.33,0.00022327,2]
[358692789,1745380240298,-3996.35,0.00022562,2]
[358692791,1745380240307,-19999.99,0.00022562,2]
[358692793,1745380240317,-1000.0,0.00022618,2]
[358692795,1745380240326,-1975.62780007,0.00022688,2]
[358692796,1745380240336,-208.8,0.00022885,2]
[358692798,1745380240345,-266.01,0.00022911,2]
[358692799,1745380240355,-220.68,0.00022951,2]
[358692801,1745380240364,-300.0,0.00023,2]
[358692802,1745380240373,-247.65532571,0.0002359,4]
[358692803,1745380240383,-587.0,0.00023695,2]
[358692804,1745380240392,-587.0,0.00023697,2]
[358692805,1745380240402,-570.01,0.00023836,2]
[358692806,1745380240411,-1763.0,0.00023924,2]
[358692807,1745380240420,-220.68,0.00024098,2]
[358692808,1745380240430,-151.0,0.00024206,7]
[358692809,1745380240440,-208.8,0.00024255,2]
[358692810,1745380240449,-2292.38,0.00024257,2]
[358692811,1745380240458,-198.23,0.00024658,2]
[358692812,1745380240468,-1000.0,0.00024658,2]
[358692813,1745380240477,-1000.0,0.00024658,2]
[358692814,1745380240486,-30519.75312621,0.00024682,2]
[358692815,1745380240495,-500.0,0.00024685,2]
[358692816,1745380240505,-502.14341741,0.00024773,2]
[358692817,1745380240514,-500.0,0.00024773,2]
[358692818,1745380240523,-500.0,0.00024773,2]
[358692819,1745380240533,-500.0,0.00024773,2]
[358692820,1745380240542,-500.91598939,0.00024773,2]
[358692821,1745380240552,-152.14650202,0.00024773,2]
[358692822,1745380240561,-503.0,0.00024795,2]
[358692823,1745380240571,-151.0,0.000248,7]
[358692824,1745380240580,-151.0,0.000248,7]
[358692825,1745380240590,-151.0,0.000248,7]
[358692826,1745380240600,-151.0,0.000248,7]
[358692827,1745380240610,-151.0,0.000248,7]
[358692828,1745380240620,-151.0,0.000248,7]
[358692829,1745380240629,-151.0,0.000248,7]
[358692830,1745380240639,-152.938439,0.000248,7]
[358692831,1745380240650,-151.0,0.000248,7]
[358692832,1745380240659,-232.250233,0.000248,7]
[358692833,1745380240670,-141565.619715,0.000248,2]
[358692834,1745380240679,-501.40751603,0.00024873,2]
[358692835,1745380240688,-502.55109152,0.00024873,2]
[358692836,1745380240699,-500.0,0.00024873,2]
[358692837,1745380240708,-499.4958612,0.00024873,2]
[358692838,1745380240718,-151.0,0.000249,7]
[358692839,1745380240727,-151.0,0.000249,7]
[358692840,1745380240741,-159.822445,0.000249,7]
[358692841,1745380240751,-154.384564,0.000249,7]
[358692842,1745380240761,-151.0,0.000249,7]
[358692843,1745380240771,-151.0,0.000249,7]
[358692844,1745380240781,-151.0,0.000249,7]
[358692845,1745380240791,-46160.83511378,0.000249,2]
[358692857,1745380245399,-151.0,0.00019999,2]
[358692858,1745380245410,-414.80661668,0.00022688,2]
[358692859,1745380245419,-4783.48006468,0.000249,2]
[358692860,1745380245431,-565.52853146,0.000249,2]
[358692861,1745380245507,-8817.30534791,0.000249,2]
[358692862,1745380245590,-73927.23429617,0.000249,2]
[358692863,1745380245600,-247.65532571,0.00024934,5]
[358692864,1745380245610,-350.0,0.00025,2]
[358692865,1745380245619,-1000.0,0.00025131,2]
[358692866,1745380245629,-220.68,0.00025246,2]
[358692867,1745380245639,-1002.13170939,0.00025452,2]
[358692868,1745380245648,-1975.62780007,0.0002549,2]
[358692869,1745380245658,-823.0,0.00025802,2]
[358692870,1745380245669,-823.0,0.00025803,2]
[358692871,1745380245679,-2469.0,0.00026176,2]
[358692872,1745380245689,-247.65532571,0.00026279,6]
[358692873,1745380245698,-220.68,0.00026394,2]
[358692874,1745380245708,-1823.03638286,0.000264,2]
[358692875,1745380245718,-2292.38,0.00026521,2]
[358692876,1745380245728,-400.0,0.00027,2]
[358692877,1745380245741,-500.0,0.00027106,2]
[358692878,1745380245750,-1702.39,0.00027397,2]
[358692879,1745380245760,-499.26,0.00027397,2]
[358692880,1745380245769,-621.48,0.00027397,2]
[358692881,1745380245781,-193.8235621,0.000275,2]
[358692883,1745380245790,-220.68,0.00027541,2]
[358692885,1745380245799,-247.65532571,0.00027624,7]
[358692887,1745380245811,-1000.0,0.00027644,2]
[358692889,1745380245822,-166.66,0.00027648,2]
[358692891,1745380245831,-2695.0,0.00027889,2]
[358692893,1745380245841,-1006.64328016,0.00028,2]
[358692895,1745380245850,-314.0,0.00028096,2]
[358692897,1745380245860,-786.0,0.00028097,2]
[358692899,1745380245870,-1334.0,0.00028246,2]
[358692901,1745380245879,-917.0,0.00028246,2]
[358692903,1745380245888,-2059.0,0.00028246,2]
[358692905,1745380245898,-153.903,0.00028246,2]
[358692907,1745380245908,-796.0,0.00028246,2]
[358692909,1745380245918,-1570.553,0.00028246,2]
[358692911,1745380245928,-547.0,0.00028246,2]
[358692913,1745380245938,-999.065,0.00028246,2]
[358692915,1745380245947,-1285.0,0.00028246,2]
[358692917,1745380245956,-584.551,0.00028246,2]
[358692919,1745380245967,-4166.0,0.00028246,2]
[358692921,1745380245976,-265.684,0.00028246,2]
[358692923,1745380245986,-254.601,0.00028246,2]
[358692925,1745380245997,-2145.0,0.00028246,2]
[358692926,1745380246006,-3984.0,0.00028246,2]
[358692928,1745380246015,-883.359,0.00028246,2]
[358692930,1745380246025,-876.0,0.00028246,2]
[358692932,1745380246035,-1975.62780007,0.00028292,2]
[358692934,1745380246045,-166.66,0.00028561,2]
[358692936,1745380246056,-3457.0,0.0002864,2]
[358692938,1745380246065,-220.68,0.00028689,2]
[358692940,1745380246074,-771.6,0.00028757,2]
[358692942,1745380246084,-181.21,0.00028767,2]
[358692944,1745380246094,-1702.39,0.00028767,2]
[358692946,1745380246103,-2292.38,0.00028785,2]
[358692948,1745380246112,-247.65532571,0.00028969,8]
[358692950,1745380246122,-500.0,0.00028973,5]
[358692952,1745380246132,-450.0,0.00029,2]
[358692954,1745380246142,-70364.84658972,0.00029,2]
[358692956,1745380246151,-495.91186648,0.00029,2]
[358692958,1745380246160,-1102.0,0.00029,2]
[358692961,1745380246171,-1101.00937377,0.0002914,2]
[358692963,1745380246180,-166.66,0.00029474,2]
[358692965,1745380246189,-220.68,0.00029836,2]
[358692966,1745380246199,-194.2,0.0003,2]
[358692968,1745380246208,-4999.999997,0.0003,2]
[358692970,1745380246218,-1320.95623379,0.0003,20]
[358693015,1745380246647,-151.0,0.00024899,2]
[358693017,1745380246657,-6126.10218652,0.0003,20]
[358693019,1745380246666,-1158.44044072,0.0003,10]
[358693850,1745380268419,156.151247,0.00046585,120]
[358693879,1745380656867,499.99,0.00046585,30]
[358693883,1745380684270,423095.55765212,0.00036164,120]
[358693884,1745380719787,2167.2,0.00046585,30]
[358693976,1745380892010,246.732822,0.00046569,120]
[358693983,1745381012841,1511.59293145,0.00046569,120]
[358693993,1745381131329,510.74969571,0.00046567,120]
[358693996,1745381150796,500.0,0.00046567,120]
[358693997,1745381155512,1000.0044145,0.00046567,30]
[358694000,1745381179520,500.0,0.00046567,120]
[358694005,1745381200810,500.0,0.00046567,120]
[358694007,1745381234918,500.0,0.00046567,120]
[358694008,1745381279836,227.20639475,0.00046567,120]
[358694016,1745381431670,-250.0,0.00021,2]
[358694017,1745381431681,-300.0,0.00023,2]
[358694018,1745381431691,-160.46480397,0.00023264,2]
[358694019,1745381431701,-339.53519603,0.00023363,2]
[358694020,1745381431713,-560.46480397,0.00023363,2]
[358694021,1745381431723,-304.56,0.00023364,2]
[358694022,1745381431733,-300.55,0.00023364,2]
[358694023,1745381431743,-305.84,0.00023364,2]
[358694024,1745381431753,-303.44,0.00023364,2]
[358694025,1745381431763,-305.72,0.00023364,2]
[358694026,1745381431773,-305.88,0.00023364,2]
[358694027,1745381431783,-268.94545978,0.00023364,2]
[358694028,1745381431803,-33.06454022,0.00023364,2]
[358694029,1745381431813,-303.11,0.00023364,2]
[358694030,1745381431822,-301.64,0.00023364,2]
[358694031,1745381431832,-301.84,0.00023364,2]
[358694032,1745381431843,-301.86,0.00023364,2]
[358694033,1745381431852,-302.77,0.00023364,2]
[358694034,1745381431862,-304.68,0.00023364,2]
[358694035,1745381431871,-304.12,0.00023364,2]
[358694036,1745381431881,-304.93,0.00023364,2]
[358694038,1745381431891,-303.42,0.00023364,2]
[358694040,1745381431901,-304.93,0.00023364,2]
[358694041,1745381431910,-301.19,0.00023364,2]
[358694042,1745381431920,-305.26,0.00023364,2]
[358694043,1745381431930,-300.5,0.00023364,2]
[358694044,1745381431940,-302.54,0.00023364,2]
[358694045,1745381431950,-304.37,0.00023364,2]
[358694046,1745381431960,-304.64,0.00023364,2]
[358694047,1745381431970,-303.48,0.00023364,2]
[358694048,1745381431980,-300.64,0.00023364,2]
[358694049,1745381431990,-300.22,0.00023364,2]
[358694050,1745381432000,-302.01,0.00023364,2]
[358694051,1745381432010,-303.02,0.00023364,2]
[358694052,1745381432020,-302.12,0.00023364,2]
[358694053,1745381432030,-302.0,0.00023364,2]
[358694054,1745381432040,-301.73,0.00023364,2]
[358694055,1745381432049,-303.11,0.00023364,2]
[358694057,1745381432059,-302.55,0.00023364,2]
[358694059,1745381432069,-301.92,0.00023364,2]
[358694061,1745381432078,-300.76,0.00023364,2]
[358694063,1745381432088,-305.05,0.00023364,2]
[358694065,1745381432098,-302.24,0.00023364,2]
[358694068,1745381432108,-300.28,0.00023364,2]
[358694071,1745381432121,-3309.95602995,0.00023786,2]
[358694122,1745381432582,-964.25784515,0.00023786,2]
[358694125,1745381432594,-6333.48445144,0.00023786,2]
[358694128,1745381432619,-487.84202657,0.00023786,2]
[358694130,1745381432629,-305.96,0.00023971,2]
[358694132,1745381432639,-250.0,0.00024422,2]
[358694134,1745381432649,-93.19392293,0.000249,5]
[358694648,1745381437934,-110.2372376,0.000249,5]
[358694649,1745381437944,-350.0,0.00025,2]
[358694651,1745381437954,-1719.28,0.0002522,2]
[358694653,1745381437964,-237.45950812,0.00025469,2]
[358694814,1745381440235,-651.27833018,0.00025469,2]
[358695076,1745381443286,-115.2621617,0.00025469,2]
[358695079,1745381443303,-250.0,0.00025623,2]
[358695082,1745381443318,-301.79,0.00026038,2]
[358695084,1745381443333,-301.45,0.00026038,2]
[358695086,1745381443348,-153.0478383,0.00026038,2]
[358695146,1745381445793,-149.3321617,0.00026038,2]
[358695147,1745381445804,-300.95,0.00026038,2]
[358695148,1745381445814,-305.31,0.00026038,2]
[358695149,1745381445824,-304.65,0.00026161,2]
[358695150,1745381445836,-304.6,0.00026161,2]
[358695151,1745381445846,-301.75,0.00026161,2]
[358695152,1745381445856,-203.4311604,0.00026196,6]
[358695153,1745381445866,-250.0,0.00026368,2]
[358695154,1745381445877,-400.0,0.00027,2]
[358695155,1745381445887,-16141.93287506,0.00027165,2]
[358695156,1745381445897,-220.68,0.00027213,2]
[358695157,1745381445907,-1000.0,0.00027239,2]
[358695158,1745381445918,-151.17,0.00027254,2]
[358695159,1745381445928,-536.83,0.00027272,2]
[358695160,1745381445939,-200.0,0.00027287,2]
[358695161,1745381445948,-1719.28,0.00027484,2]
[358695162,1745381445971,-203.4311604,0.00027493,7]
[358695163,1745381445983,-250.0,0.00027501,2]
[358695164,1745381445994,-160.46480397,0.00027648,2]
[358695165,1745381446005,-23900.0,0.00027735,2]
[358695166,1745381446016,-250.62962809,0.00027748,2]
[358695168,1745381446026,-301.6,0.00027957,2]
[358695170,1745381446037,-166.66,0.00028043,2]
[358695172,1745381446047,-1021.43,0.00028045,2]
[358695174,1745381446058,-1198.66508714,0.00028152,2]
[358695176,1745381446069,-500.0,0.00028384,2]
[358695178,1745381446079,-682.91978135,0.00028781,2]
[358695180,1745381446089,-203.4311604,0.00028789,8]
[358695182,1745381446100,-338.01182594,0.000288,2]
[358695184,1745381446110,-166.66,0.00028968,2]
[358695186,1745381446123,-450.0,0.00029,2]
[358695188,1745381446133,-200.0,0.00029,2]
[358695190,1745381446143,-248.223,0.00029246,2]
[358695192,1745381446154,-153.739,0.00029246,2]
[358695194,1745381446166,-917.0,0.00029246,2]
[358695197,1745381446176,-2059.0,0.00029246,2]
[358695199,1745381446186,-1334.0,0.00029246,2]
[358695201,1745381446196,-796.0,0.00029246,2]
[358695203,1745381446206,-547.0,0.00029246,2]
[358695206,1745381446217,-1285.0,0.00029246,2]
[358695208,1745381446227,-910.0,0.00029246,2]
[358695210,1745381446236,-1444.0,0.00029246,2]
[358695212,1745381446246,-4166.0,0.00029246,2]
[358695214,1745381446256,-578.0,0.00029246,2]
[358695216,1745381446266,-2145.0,0.00029246,2]
[358695218,1745381446277,-3984.0,0.00029246,2]
[358695220,1745381446287,-152.0,0.00029246,2]
[358695222,1745381446297,-876.0,0.00029246,2]
[358695224,1745381446307,-870.0,0.00029246,2]
[358695226,1745381446317,-8995.02930218,0.00029247,2]
[358695228,1745381446326,-1021.43,0.00029448,2]
[358695230,1745381446336,-1719.28,0.00029748,2]
[358695232,1745381446347,-331.84529338,0.0002989,2]
[358695234,1745381446357,-166.66,0.00029894,2]
[358695235,1745381446367,-1185.37668006,0.00029899,2]
[358695236,1745381446376,-500.0,0.000299,2]
[358695237,1745381446392,-28620.276859,0.0002998,2]
[358695238,1745381446402,-293.41,0.00029989,2]
[358695239,1745381446411,-293.41,0.00029989,2]
[358695240,1745381446423,-293.41,0.00029989,2]
[358695241,1745381446435,-293.41,0.00029989,2]
[358695242,1745381446447,-293.41,0.00029989,2]
[358695243,1745381446457,-219600.146233,0.0002999,2]
[358695244,1745381446470,-7770.2214218,0.0002999,2]
[358695245,1745381446481,-2239.180097,0.0002999,2]
[358695246,1745381446490,-3585.4331986,0.0002999,2]
[358695247,1745381446500,-151.0,0.00029999,2]
[358695249,1745381446510,-5379.93769628,0.0003,10]
[358695251,1745381446521,-28620.276859,0.00030022,2]
[358695253,1745381446531,-203.4311604,0.00030085,9]
[358695255,1745381446542,-610.0,0.00030137,2]
[358695257,1745381446552,-151.93389675,0.000305,2]
[358695259,1745381446562,-1000.0,0.00030644,2]
[358695261,1745381446572,-1894.0,0.000308,2]
[358695263,1745381446583,-166.66,0.0003082,2]
[358695266,1745381446593,-1021.43,0.0003085,2]
[358695268,1745381446604,-500.0,0.00030973,7]
[358695270,1745381446613,-500.0,0.00031,2]
[358695272,1745381446623,-203.4311604,0.00031381,9]
[358695274,1745381446633,-181.21,0.00031573,2]
[358695276,1745381446644,-331.84529334,0.00031581,2]
[358695278,1745381446655,-1185.37668004,0.00031589,2]
[358695280,1745381446665,-166.66,0.00031745,2]
[358695282,1745381446677,-3196.96066302,0.00032,5]
[358695284,1745381446687,-1507.11634356,0.00032,2]
[358695286,1745381446698,-1000.0,0.00032,2]
[358695289,1745381446709,-1719.28,0.00032012,2]
[358695291,1745381446719,-28620.276859,0.00032236,2]
[358695293,1745381446728,-150.0,0.00032246,2]
[358695295,1745381446739,-390.701,0.00032246,2]
[358695297,1745381446749,-2059.0,0.00032246,2]
[358695299,1745381446759,-1334.0,0.00032246,2]
[358695301,1745381446769,-796.0,0.00032246,2]
[358695303,1745381446779,-547.0,0.00032246,2]
[358695304,1745381446789,-1285.0,0.00032246,2]
[358695306,1745381446799,-910.0,0.00032246,2]
[358695307,1745381446810,-1444.0,0.00032246,2]
[358695308,1745381446820,-4166.0,0.00032246,2]
[358695309,1745381446830,-578.0,0.00032246,2]
[358695310,1745381446846,-2145.0,0.00032246,2]
[358695311,1745381446856,-3984.0,0.00032246,2]
[358695312,1745381446867,-152.0,0.00032246,2]
[358695313,1745381446878,-876.0,0.00032246,2]
[358695314,1745381446887,-870.0,0.00032246,2]
[358695315,1745381446898,-1021.43,0.00032252,2]
[358695316,1745381446908,-166.66,0.00032671,2]
[358695317,1745381446918,-203.4311604,0.00032678,10]
[358695318,1745381446931,-4653.5514514,0.000328,2]
[358695319,1745381446941,-155.96,0.00032877,2]
[358695320,1745381446952,-168.03,0.00032877,30]
[358695321,1745381446962,-299.34,0.00032904,30]
[358695322,1745381446972,-4557.32775913,0.00033,2]
[358695323,1745381446982,-25127.17473418,0.00033,2]
[358695324,1745381446992,-550.0,0.00033,2]
[358695325,1745381447002,-500.0,0.00033068,2]
[358695326,1745381447013,-200.0,0.00033151,2]
[358695327,1745381447023,-1983.0,0.000332,7]
[358695328,1745381447034,-28620.276859,0.00033247,2]
[358695329,1745381447044,-7320.31166663,0.00033257,2]
[358695330,1745381447055,-331.84529334,0.00033271,2]
[358695331,1745381447065,-1185.37668004,0.00033278,2]
[358695332,1745381447075,-1021.43,0.00033654,2]
[358695333,1745381447087,-203.4311604,0.00033974,11]
[358695334,1745381447098,-4003.47403547,0.00034,2]
[358695335,1745381447108,-1000.0,0.00034049,2]
[358695336,1745381447121,-1719.28,0.00034276,2]
[358695337,1745381447132,-1102.78563424,0.000345,2]
[358695338,1745381447142,-150.0,0.00034548,10]
[358695339,1745381447152,-873.99679988,0.0003489,14]
[358695340,1745381447163,-331.84529334,0.00034962,2]
[358695341,1745381447174,-1185.37668004,0.00034968,2]
[358695342,1745381447184,-482.79756516,0.00035,2]
[358695343,1745381447195,-461.10708566,0.00035,30]
[358695344,1745381447206,-6029.78467888,0.00035,2]
[358695345,1745381447216,-1569.32102285,0.00035,7]
[358695346,1745381447226,-600.0,0.00035,2]
[358695347,1745381447236,-28620.276859,0.00035226,2]
[358695348,1745381447246,-150.0,0.00035246,2]
[358695349,1745381447257,-727.762,0.00035246,2]
[358695350,1745381447267,-1334.0,0.00035246,2]
[358695351,1745381447276,-796.0,0.00035246,2]
[358695352,1745381447290,-547.0,0.00035246,2]
[358695353,1745381447300,-1285.0,0.00035246,2]
[358695354,1745381447311,-910.0,0.00035246,2]
[358695355,1745381447322,-1444.0,0.00035246,2]
[358695356,1745381447333,-4166.0,0.00035246,2]
[358695357,1745381447343,-2145.0,0.00035246,2]
[358695358,1745381447353,-3984.0,0.00035246,2]
[358695359,1745381447363,-152.0,0.00035246,2]
[358695360,1745381447373,-876.0,0.00035246,2]
[358695361,1745381447384,-870.0,0.00035246,2]
[358695363,1745381447395,-203.4311604,0.0003527,12]
[358695364,1745381447406,-155.96,0.00035616,2]
[358695365,1745381447417,-28620.276859,0.00035891,2]
[358695366,1745381447428,-18144.606438,0.00035891,2]
[358695367,1745381447438,-293.41,0.00035899,2]
[358695368,1745381447448,-293.41,0.00035899,2]
[358695369,1745381447458,-293.41,0.00035899,2]